fUSD/lending_fUSD_20250226
["ID","MTS","AMOUNT","RATE_DAILY","PERIOD"]
[354623278,1740595992837,-1876.78,0.00041643,14]
[354623279,1740595992846,-1560.4,0.00041643,14]
[354623280,1740595992855,-6192.85,0.00041643,14]
[354623281,1740595992864,-647.32,0.00041643,14]
[354623282,1740595992874,-1726.29,0.00041643,14]
[354623283,1740595992882,-1676.26,0.00041643,14]
[354623284,1740595992892,-2725.95,0.00041643,14]
[354623285,1740595992901,-563.72,0.00041643,14]
[354623286,1740595992915,-944.42,0.00041643,14]
[354623287,1740595992924,-3837.57,0.00041643,14]
[354623288,1740595992933,-1361.35,0.00041643,14]
[354623289,1740595992942,-1302.57,0.00041643,14]
[354623290,1740595992951,-688.53,0.00041643,14]
[354623291,1740595992960,-11693.75,0.00041643,14]
[354623292,1740595992970,-861.86,0.00041643,14]
[354623293,1740595992980,-1132.99,0.00041643,14]
[354623294,1740595992990,-3063.11,0.00041643,14]
[354623295,1740595992999,-2812.52,0.00041643,14]
[354623296,1740595993008,-2332.02,0.00041643,14]
[354623297,1740595993018,-1403.52,0.00041643,14]
[354623298,1740595993031,-2514.92,0.00041643,14]
[354623299,1740595993040,-840.17,0.00041643,14]
[354623300,1740595993049,-3032.5,0.00041643,14]
[354623301,1740595993058,-3285.15,0.00041643,14]
[354623302,1740595993067,-1217.25,0.00041643,14]
[354623303,1740595993076,-2864.92,0.00041643,14]
[354623304,1740595993085,-521.32,0.00041643,14]
[354623305,1740595993094,-829.58,0.00041643,14]
[354623306,1740595993104,-1548.49,0.00041643,14]
[354623307,1740595993114,-1797.4,0.00041643,14]
[354623308,1740595993123,-3783.79,0.00041643,14]
[354623309,1740595993131,-577.91,0.00041643,14]
[354623310,1740595993140,-1141.09,0.00041643,14]
[354623311,1740595993149,-2194.13,0.00041643,14]
[354623312,1740595993159,-2625.14,0.00041643,14]
[354623313,1740595993171,-1289.77,0.00041643,14]
[354623314,1740595993180,-564.43,0.00041643,14]
[354623315,1740595993190,-6297.9,0.00041643,14]
[354623316,1740595993199,-2622.68,0.00041643,14]
[354623317,1740595993208,-3149.85,0.00041643,14]
[354623318,1740595993218,-806.4,0.00041643,14]
[354623319,1740595993227,-2632.85,0.00041643,14]
[354623320,1740595993236,-2112.2,0.00041643,14]
[354623321,1740595993245,-3833.32,0.00041643,14]
[354623322,1740595993255,-1648.8,0.00041643,14]
[354623323,1740595993265,-5487.93,0.00041643,14]
[354623324,1740595993274,-974.58,0.00041643,14]
[354623325,1740595993283,-565.43,0.00041643,14]
[354623326,1740595993293,-1343.0,0.00041643,14]
[354623327,1740595993302,-2311.59,0.00041643,14]
[354623328,1740595993312,-11841.49,0.00041643,14]
[354623329,1740595993321,-567.13,0.00041643,14]
[354623330,1740595993331,-3413.54,0.00041643,14]
[354623331,1740595993340,-1833.27,0.00041643,14]
[354623332,1740595993349,-995.26,0.00041643,14]
[354623333,1740595993359,-1238.69,0.00041643,14]
[354623334,1740595993368,-1700.63,0.00041643,14]
[354623335,1740595993377,-2752.94,0.00041643,14]
[354623336,1740595993386,-3517.26,0.00041643,14]
[354623337,1740595993396,-1862.26,0.00041643,14]
[354623338,1740595993405,-4507.25,0.00041643,14]
[354623339,1740595993417,-7439.57,0.00041643,14]
[354623340,1740595993427,-1154.79,0.00041643,14]
[354623341,1740595993436,-639.34,0.00041643,14]
[354623342,1740595993446,-1572.85,0.00041643,14]
[354623343,1740595993455,-3421.4,0.00041643,14]
[354623344,1740595993464,-1778.87,0.00041643,14]
[354623345,1740595993473,-1616.96,0.00041643,14]
[354623346,1740595993482,-696.16,0.00041643,14]
[354623347,1740595993492,-9182.73,0.00041643,14]
[354623348,1740595993501,-6709.93,0.00041643,14]
[354623349,1740595993511,-683.41,0.00041643,14]
[354623350,1740595993520,-682.72,0.00041643,14]
[354623351,1740595993529,-4316.65,0.00041643,14]
[354623352,1740595993538,-546.58,0.00041643,14]
[354623353,1740595993547,-3317.95,0.00041643,14]
[354623354,1740595993556,-1576.59,0.00041643,14]
[354623355,1740595993566,-604.02,0.00041643,14]
[354623356,1740595993575,-682.23,0.00041643,14]
[354623357,1740595993584,-876.15,0.00041643,14]
[354623358,1740595993593,-1898.38,0.00041643,14]
[354623359,1740595993602,-3418.9,0.00041643,14]
[354623360,1740595993612,-749.16,0.00041643,14]
[354623361,1740595993621,-2938.03,0.00041643,14]
[354623362,1740595993630,-1228.02,0.00041643,14]
[354623363,1740595993639,-2258.95,0.00041643,14]
[354623364,1740595993648,-1052.77,0.00041643,14]
[354623365,1740595993657,-932.43,0.00041643,14]
[354623366,1740595993668,-1087.18,0.00041643,14]
[354623367,1740595993677,-3770.5,0.00041643,14]
[354623368,1740595993687,-4443.37,0.00041643,14]
[354623369,1740595993696,-841.55,0.00041643,14]
[354623370,1740595993705,-4370.98,0.00041643,14]
[354623371,1740595993715,-1077.8,0.00041643,14]
[354623372,1740595993724,-1662.55,0.00041643,14]
[354623373,1740595993733,-1684.75,0.00041643,14]
[354623374,1740595993742,-732.3,0.00041643,14]
[354623375,1740595993751,-669.42,0.00041643,14]
[354623376,1740595993761,-2153.43,0.00041643,14]
[354623377,1740595993770,-2455.03,0.00041643,14]
[354623378,1740595993779,-500.0,0.00041643,14]
[354623379,1740595993788,-8707.22,0.00041643,14]
[354623380,1740595993797,-555.94,0.00041643,14]
[354623381,1740595993806,-661.77,0.00041643,14]
[354623382,1740595993815,-1962.86,0.00041643,14]
[354623383,1740595993824,-1465.58,0.00041643,14]
[354623384,1740595993833,-14121.36,0.00041643,14]
[354623385,1740595993843,-3029.66,0.00041643,14]
[354623386,1740595993852,-3158.55,0.00041643,14]
[354623387,1740595993861,-677.06,0.00041643,14]
[354623388,1740595993870,-1234.59,0.00041643,14]
[354623389,1740595993879,-1124.82,0.00041643,14]
[354623390,1740595993889,-1087.29,0.00041643,14]
[354623391,1740595993899,-1184.83,0.00041643,14]
[354623392,1740595993908,-766.23,0.00041643,14]
[354623393,1740595993918,-1001.3,0.00041643,14]
[354623394,1740595993928,-617.69,0.00041643,14]
[354623395,1740595993937,-1731.67,0.00041643,14]
[354623396,1740595993947,-3138.97,0.00041643,14]
[354623397,1740595993956,-527.05,0.00041643,14]
[354623398,1740595993966,-1244.63,0.00041643,14]
[354623399,1740595993975,-850.11,0.00041643,14]
[354623400,1740595993989,-2099.68,0.00041643,14]
[354623401,1740595993999,-1394.32,0.00041643,14]
[354623402,1740595994008,-1086.92,0.00041643,14]
[354623403,1740595994017,-1256.63,0.00041643,14]
[354623404,1740595994028,-1776.24,0.00041643,14]
[354623405,1740595994037,-3802.94,0.00041643,14]
[354623406,1740595994048,-772.03,0.00041643,14]
[354623407,1740595994058,-500.0,0.00041643,14]
[354623408,1740595994068,-773.62,0.00041643,14]
[354623409,1740595994078,-666.36,0.00041643,14]
[354623410,1740595994087,-1317.17,0.00041643,14]
[354623411,1740595994097,-1264.32,0.00041643,14]
[354623412,1740595994107,-1507.85,0.00041643,14]
[354623413,1740595994116,-4383.06,0.00041643,14]
[354623414,1740595994125,-2961.3,0.00041643,14]
[354623415,1740595994135,-1388.89,0.00041643,14]
[354623416,1740595994144,-556.93,0.00041643,14]
[354623417,1740595994154,-3155.81,0.00041643,14]
[354623418,1740595994163,-561.98,0.00041643,14]
[354623419,1740595994173,-2270.77,0.00041643,14]
[354623420,1740595994183,-242.67996078,0.00041652,7]
[354623421,1740595994192,-1749.77,0.00041671,120]
[354623422,1740595994201,-6480.42706614,0.00041684,8]
[354623423,1740595994211,-5000.0,0.00041684,9]
[354623424,1740595994220,-5000.0,0.00041684,8]
[354623425,1740595994229,-1749.77,0.00041698,120]
[354623426,1740595994239,-153.48,0.000417,31]
[354623427,1740595994249,-153.48,0.000417,31]
[354623428,1740595994259,-153.48,0.000417,31]
[354623429,1740595994268,-155.51,0.000417,10]
[354623430,1740595994278,-620.42,0.00041704,120]
[354623431,1740595994287,-909.9706,0.00041707,3]
[354623432,1740595994296,-2000.0,0.00041707,3]
[354623433,1740595994305,-2000.0,0.00041707,3]
[354623434,1740595994315,-2000.0,0.00041707,3]
[354623435,1740595994325,-1749.92037649,0.00041726,120]
[354623436,1740595994334,-14756.4072248,0.00041727,7]
[354623437,1740595994343,-67781.8021344,0.00041727,7]
[354623438,1740595994353,-965.29,0.0004176,2]
[354623439,1740595994362,-377.46614524,0.00041781,30]
[354623440,1740595994371,-150.0,0.0004182,30]
[354623441,1740595994380,-150.0,0.0004182,30]
[354623442,1740595994391,-150.0,0.0004182,30]
[354623443,1740595994401,-1072.4581754,0.0004182,30]
[354623444,1740595994410,-404.06549699,0.0004182,30]
[354623445,1740595994419,-6015.84739085,0.0004182,30]
[354623446,1740595994429,-150.0,0.0004182,30]
[354623447,1740595994439,-556.52526326,0.0004182,30]
[354623448,1740595994448,-500.0,0.00041829,120]
[354623449,1740595994458,-1000.0,0.0004187,3]
[354623450,1740595994467,-1000.0,0.0004187,3]
[354623451,1740595994477,-500.0,0.0004187,3]
[354623452,1740595994486,-500.0,0.0004187,3]
[354623453,1740595994496,-376.101918,0.00041887,30]
[354623454,1740595994506,-672.636069,0.00041917,14]
[354623455,1740595994516,-676.8814866,0.00041917,14]
[354623456,1740595994526,-1501.590989,0.00041917,14]
[354623457,1740595994536,-870.46940113,0.00041917,14]
[354623458,1740595994545,-815.08818276,0.00041917,14]
[354623459,1740595994555,-1069.36000806,0.00041917,14]
[354623460,1740595994564,-1090.33084,0.00041917,14]
[354623461,1740595994574,-1150.41625201,0.00041917,14]
[354623462,1740595994583,-701.49500091,0.00041917,14]
[354623463,1740595994593,-841.89337744,0.00041917,14]
[354623464,1740595994603,-670.33722946,0.00041917,14]
[354623465,1740595994612,-1844.19680043,0.00041917,14]
[354623466,1740595994622,-748.12260436,0.00041917,14]
[354623467,1740595994632,-836.01879696,0.00041917,14]
[354623468,1740595994642,-738.74964305,0.00041917,14]
[354623469,1740595994651,-1533.89,0.00041917,14]
[354623470,1740595994774,-1414.38400918,0.00041917,14]
[354623471,1740595994784,-865.17545177,0.00041917,14]
[354623472,1740595994794,-634.09159578,0.00041917,14]
[354623473,1740595994804,-600.46972639,0.00041917,14]
[354623474,1740595994814,-580.47636695,0.00041917,14]
[354623475,1740595994824,-742.38751244,0.00041917,14]
[354623476,1740595994834,-732.69936339,0.00041917,14]
[354623477,1740595994844,-527.11102939,0.00041917,14]
[354623478,1740595994855,-935.14579508,0.00041917,14]
[354623479,1740595994865,-581.34470977,0.00041917,14]
[354623480,1740595994874,-689.54346851,0.00041917,14]
[354623481,1740595994884,-689.61535426,0.00041917,14]
[354623482,1740595994893,-543.41,0.00041917,14]
[354623483,1740595994903,-571.47481218,0.00041917,14]
[354623484,1740595994913,-697.04945642,0.00041917,14]
[354623485,1740595994931,-1290.53657108,0.00041917,14]
[354623486,1740595994942,-546.65231134,0.00041917,14]
[354623487,1740595994952,-594.90595396,0.00041917,14]
[354623488,1740595994962,-635.35156971,0.00041917,14]
[354623489,1740595994973,-617.44667412,0.00041917,14]
[354623490,1740595994985,-665.2281618,0.00041917,14]
[354623491,1740595994995,-858.52351661,0.00041917,14]
[354623492,1740595995005,-1850.19208078,0.00041917,14]
[354623493,1740595995017,-1161.67550489,0.00041917,14]
[354623494,1740595995027,-1036.11897718,0.00041917,14]
[354623495,1740595995038,-2240.47365077,0.00041917,14]
[354623496,1740595995047,-609.03531984,0.00041917,14]
[354623497,1740595995057,-2310.91672675,0.00041917,14]
[354623498,1740595995067,-1019.02238559,0.00041917,14]
[354623499,1740595995077,-871.92211119,0.00041917,14]
[354623500,1740595995088,-1006.31269254,0.00041917,14]
[354623501,1740595995099,-1116.52323803,0.00041917,14]
[354623502,1740595995110,-596.10055363,0.00041917,14]
[354623503,1740595995120,-641.58312109,0.00041917,14]
[354623504,1740595995130,-772.89162162,0.00041917,14]
[354623505,1740595995140,-872.16717764,0.00041917,14]
[354623506,1740595995150,-935.91722472,0.00041917,14]
[354623507,1740595995160,-1309.14028631,0.00041917,14]
[354623508,1740595995171,-649.27770682,0.00041917,14]
[354623509,1740595995181,-1082.40655498,0.00041917,14]
[354623510,1740595995191,-513.50129467,0.00041917,14]
[354623511,1740595995201,-1176.93,0.00041917,14]
[354623512,1740595995212,-1686.12029643,0.00041917,14]
[354623513,1740595995222,-547.31093153,0.00041917,14]
[354623514,1740595995232,-538.3087851,0.00041917,14]
[354623515,1740595995242,-811.67897821,0.00041917,14]
[354623516,1740595995252,-1804.54240419,0.00041917,14]
[354623517,1740595995263,-969.30504138,0.00041917,14]
[354623518,1740595995273,-2234.96020799,0.00041917,14]
[354623519,1740595995284,-877.30377515,0.00041917,14]
[354623520,1740595995294,-582.76598226,0.00041917,14]
[354623521,1740595995304,-1855.56922041,0.00041917,14]
[354623522,1740595995314,-1019.61481346,0.00041917,14]
[354623523,1740595995324,-2120.26167973,0.00041917,14]
[354623524,1740595995334,-1021.41574663,0.00041917,14]
[354623525,1740595995344,-1614.10195318,0.00041917,14]
[354623526,1740595995353,-572.29926405,0.00041917,14]
[354623527,1740595995363,-982.59926842,0.00041917,14]
[354623528,1740595995373,-1105.79297651,0.00041917,14]
[354623529,1740595995382,-2258.39530974,0.00041917,14]
[354623530,1740595995391,-1496.18023324,0.00041917,14]
[354623531,1740595995401,-1314.042261,0.00041917,14]
[354623532,1740595995411,-782.7009228,0.00041917,14]
[354623533,1740595995421,-633.24711983,0.00041917,14]
[354623534,1740595995431,-1614.87,0.00041917,14]
[354623535,1740595995441,-2802.17,0.00041917,120]
[354623536,1740595995451,-778.00395913,0.00041917,14]
[354623537,1740595995461,-1119.97101282,0.00041917,14]
[354623538,1740595995470,-630.19291939,0.00041917,14]
[354623539,1740595995479,-276.53775451,0.00041917,14]
[354623540,1740595995490,-1550.23,0.00041917,14]
[354623541,1740595995499,-898.60977948,0.00041917,14]
[354623542,1740595995509,-666.61662901,0.00041917,14]
[354623543,1740595995519,-986.44925212,0.00041917,14]
[354623544,1740595995529,-1800.53495224,0.00041917,14]
[354623545,1740595995539,-1038.31795235,0.00041917,14]
[354623546,1740595995549,-722.39081484,0.00041917,14]
[354623547,1740595995558,-777.82936553,0.00041917,14]
[354623548,1740595995567,-1016.56862189,0.00041917,14]
[354623549,1740595995577,-583.54929554,0.00041917,14]
[354623550,1740595995586,-746.78109675,0.00041917,14]
[354623551,1740595995596,-529.88523751,0.00041917,14]
[354623552,1740595995605,-806.18174117,0.00041917,14]
[354623553,1740595995614,-886.80073826,0.00041917,14]
[354623554,1740595995624,-820.47156395,0.00041917,14]
[354623555,1740595995634,-1501.21774236,0.00041917,14]
[354623556,1740595995643,-921.51829273,0.00041917,14]
[354623557,1740595995653,-699.71078547,0.00041917,14]
[354623558,1740595995663,-1003.98148049,0.00041917,14]
[354623559,1740595995672,-1495.79857298,0.00041917,14]
[354623560,1740595995681,-834.61857779,0.00041917,14]
[354623561,1740595995690,-831.48086722,0.00041917,14]
[354623562,1740595995700,-675.83657571,0.00041917,14]
[354623563,1740595995710,-917.03648207,0.00041917,14]
[354623564,1740595995721,-551.77527708,0.00041917,14]
[354623565,1740595995731,-681.65144686,0.00041917,14]
[354623566,1740595995740,-1958.70796527,0.00041917,14]
[354623567,1740595995750,-1067.80824637,0.00041917,14]
[354623568,1740595995759,-346.72662754,0.00041917,14]
[354623569,1740595995769,-636.81227263,0.00041917,14]
[354623570,1740595995778,-1007.62855186,0.00041917,14]
[354623571,1740595995787,-826.76080352,0.00041917,14]
[354623572,1740595995797,-532.8827134,0.00041917,14]
[354623573,1740595995807,-1256.21,0.00041917,14]
[354623574,1740595995817,-510.26305019,0.00041917,14]
[354623575,1740595995826,-1084.71242726,0.00041917,14]
[354623576,1740595995836,-1101.70654412,0.00041917,14]
[354623577,1740595995845,-634.91923386,0.00041917,14]
[354623578,1740595995855,-842.82124278,0.00041917,14]
[354623579,1740595995864,-861.48599398,0.00041917,14]
[354623580,1740595995874,-765.48087815,0.00041917,14]
[354623581,1740595995883,-604.99044608,0.00041917,14]
[354623582,1740595995892,-1116.83890697,0.00041917,14]
[354623583,1740595995901,-1441.75427795,0.00041917,14]
[354623584,1740595995910,-754.4,0.00041917,14]
[354623585,1740595995919,-929.34051991,0.00041917,14]
[354623586,1740595995929,-1403.73371111,0.00041917,14]
[354623587,1740595995939,-718.19646892,0.00041917,14]
[354623588,1740595995949,-1217.67457897,0.00041917,14]
[354623589,1740595995959,-1107.23829313,0.00041917,14]
[354623590,1740595995969,-1834.2844067,0.00041917,14]
[354623591,1740595995979,-902.32927417,0.00041917,14]
[354623592,1740595995992,-561.62475982,0.00041917,14]
[354623593,1740595996001,-566.07608561,0.00041917,14]
[354623594,1740595996011,-1996.53180115,0.00041917,14]
[354623595,1740595996020,-563.4797728,0.00041917,14]
[354623596,1740595996031,-1467.34130482,0.00041917,14]
[354623597,1740595996042,-1321.23105139,0.00041917,14]
[354623598,1740595996052,-1902.56000113,0.00041917,14]
[354623599,1740595996062,-1141.18313466,0.00041917,14]
[354623600,1740595996072,-528.46225326,0.00041917,14]
[354623601,1740595996082,-651.9453949,0.00041917,14]
[354623602,1740595996092,-1074.10061882,0.00041917,14]
[354623603,1740595996102,-1236.10639488,0.00041917,14]
[354623604,1740595996112,-583.02367678,0.00041917,14]
[354623605,1740595996123,-642.75870946,0.00041917,14]
[354623606,1740595996132,-1162.09228888,0.00041917,14]
[354623607,1740595996142,-1175.26328979,0.00041917,14]
[354623608,1740595996152,-1123.3130271,0.00041917,14]
[354623609,1740595996162,-1360.61422898,0.00041917,14]
[354623610,1740595996173,-990.15705573,0.00041917,14]
[354623611,1740595996183,-758.81904797,0.00041917,14]
[354623612,1740595996193,-1858.15474335,0.00041917,14]
[354623613,1740595996204,-743.83891116,0.00041917,14]
[354623614,1740595996214,-836.38447685,0.00041917,14]
[354623615,1740595996223,-552.28497686,0.00041917,14]
[354623616,1740595996233,-957.01690191,0.00041917,14]
[354623617,1740595996242,-1949.71353624,0.00041917,14]
[354623618,1740595996253,-1008.03594619,0.00041917,14]
[354623619,1740595996262,-1466.2403679,0.00041917,14]
[354623620,1740595996271,-1152.39563337,0.00041917,14]
[354623621,1740595996282,-2482.43251553,0.00041917,14]
[354623622,1740595996291,-1828.55406273,0.00041917,14]
[354623623,1740595996300,-527.7788623,0.00041917,14]
[354623624,1740595996310,-873.84125958,0.00041917,14]
[354623625,1740595996320,-1665.81088223,0.00041917,14]
[354623626,1740595996331,-492.88643784,0.00041917,14]
[354623627,1740595996341,-1934.80451331,0.00041917,14]
[354623628,1740595996350,-786.21731852,0.00041917,14]
[354623629,1740595996360,-1875.29596756,0.00041917,14]
[354623630,1740595996370,-1075.73557796,0.00041917,14]
[354623631,1740595996379,-555.00774712,0.00041917,14]
[354623632,1740595996389,-956.54398714,0.00041917,14]
[354623633,1740595996399,-280.03277145,0.00041917,14]
[354623634,1740595996408,-1163.45498957,0.00041917,14]
[354623635,1740595996418,-1037.68718197,0.00041917,14]
[354623636,1740595996428,-2110.23909009,0.00041917,14]
[354623637,1740595996438,-655.89248642,0.00041917,14]
[354623638,1740595996448,-519.04467017,0.00041917,14]
[354623639,1740595996458,-754.28371303,0.00041917,14]
[354623640,1740595996467,-1351.57816875,0.00041917,14]
[354623641,1740595996476,-1595.06377029,0.00041917,14]
[354623642,1740595996486,-883.30164485,0.00041917,14]
[354623643,1740595996495,-978.86042798,0.00041917,14]
[354623644,1740595996504,-544.57521906,0.00041917,14]
[354623645,1740595996514,-1282.94848569,0.00041917,14]
[354623646,1740595996523,-1979.88361381,0.00041917,14]
[354623647,1740595996533,-1465.83,0.00041917,14]
[354623648,1740595996543,-1395.94637593,0.00041917,14]
[354623649,1740595996553,-854.90794611,0.00041917,14]
[354623650,1740595996563,-1505.08282386,0.00041917,14]
[354623651,1740595996572,-924.12836598,0.00041917,14]
[354623652,1740595996581,-711.18833397,0.00041917,14]
[354623653,1740595996590,-552.46653618,0.00041917,14]
[354623654,1740595996599,-895.88600909,0.00041917,14]
[354623655,1740595996609,-932.82736689,0.00041917,14]
[354623656,1740595996618,-1559.01456186,0.00041917,14]
[354623657,1740595996627,-912.29592673,0.00041917,14]
[354623658,1740595996638,-551.65786625,0.00041917,14]
[354623659,1740595996651,-3271.63812602,0.00041917,14]
[354623660,1740595996661,-3117.41955978,0.00041917,14]
[354623661,1740595996670,-896.12890366,0.00041917,14]
[354623662,1740595996680,-1469.54793575,0.00041917,14]
[354623663,1740595996689,-1970.35621813,0.00041917,14]
[354623664,1740595996699,-1219.88981001,0.00041917,14]
[354623665,1740595996709,-1262.10721521,0.00041917,120]
[354623666,1740595996719,-1258.35637923,0.00041917,14]
[354623667,1740595996728,-1004.18472984,0.00041917,14]
[354623668,1740595996738,-1048.25413984,0.00041917,14]
[354623669,1740595996748,-802.71918065,0.00041917,14]
[354623670,1740595996758,-12754.80583674,0.00041917,14]
[354623671,1740595996770,-760.48546524,0.00041917,14]
[354623672,1740595996779,-1559.96964609,0.00041917,14]
[354623673,1740595996789,-1039.17,0.00041917,14]
[354623674,1740595996800,-968.69580004,0.00041917,14]
[354623675,1740595996810,-975.43089119,0.00041917,14]
[354623676,1740595996819,-884.81181254,0.00041917,14]
[354623677,1740595996828,-677.87463011,0.00041917,14]
[354623678,1740595996838,-581.58684906,0.00041917,14]
[354623679,1740595996847,-559.55346506,0.00041917,14]
[354623680,1740595996856,-1068.20766525,0.00041917,14]
[354623681,1740595996866,-1096.71381258,0.00041917,14]
[354623682,1740595996875,-1472.30342293,0.00041917,14]
[354623683,1740595996884,-883.07209285,0.00041917,14]
[354623684,1740595996894,-505.64504243,0.00041917,14]
[354623685,1740595996904,-1708.78129832,0.00041917,14]
[354623686,1740595996913,-966.90956599,0.00041917,14]
[354623687,1740595996923,-1141.58905856,0.00041917,7]
[354623688,1740595997217,-811.23909788,0.00041917,14]
[354623689,1740595997227,-1382.68,0.00041917,14]
[354623690,1740595997236,-669.95419862,0.00041917,14]
[354623691,1740595997245,-691.92688333,0.00041917,14]
[354623692,1740595997256,-1911.13646678,0.00041917,14]
[354623693,1740595997266,-530.0,0.00041917,14]
[354623694,1740595997275,-279.22,0.00041917,14]
[354623695,1740595997284,-874.58954274,0.00041917,14]
[354623696,1740595997294,-776.37413453,0.00041917,14]
[354623697,1740595997304,-2493.54,0.00041917,14]
[354623698,1740595997313,-811.0306856,0.00041917,14]
[354623699,1740595997322,-2617.42062958,0.00041917,14]
[354623700,1740595997332,-1621.80862986,0.00041917,14]
[354623701,1740595997343,-2143.2987069,0.00041917,14]
[354623702,1740595997352,-2319.76187861,0.00041917,14]
[354623703,1740595997361,-444.95718704,0.00041917,14]
[354623704,1740595997370,-529.15381542,0.00041917,14]
[354623705,1740595997380,-768.66117932,0.00041917,14]
[354623706,1740595997389,-167.05003893,0.00041917,14]
[354623707,1740595997398,-1163.26022121,0.00041917,14]
[354623708,1740595997408,-911.16685812,0.00041917,14]
[354623709,1740595997417,-2143.58712472,0.00041917,14]
[354623710,1740595997428,-1281.16515558,0.00041917,14]
[354623711,1740595997437,-1855.81110057,0.00041917,14]
[354623712,1740595997446,-873.74489569,0.00041917,14]
[354623713,1740595997456,-939.53045257,0.00041917,14]
[354623714,1740595997465,-1902.33559743,0.00041917,14]
[354623715,1740595997474,-1142.20733669,0.00041917,14]
[354623716,1740595997484,-800.99016175,0.00041917,14]
[354623717,1740595997493,-512.66503269,0.00041917,14]
[354623718,1740595997502,-2507.51359436,0.00041917,2]
[354623719,1740595997512,-938.47591753,0.00041917,14]
[354623720,1740595997522,-731.93152545,0.00041917,14]
[354623721,1740595997531,-1276.51,0.00041917,14]
[354623722,1740595997540,-1981.79232142,0.00041917,14]
[354623723,1740595997551,-708.44946508,0.00041917,14]
[354623724,1740595997561,-2733.8435369,0.00041917,14]
[354623725,1740595997570,-2252.04076537,0.00041917,14]
[354623726,1740595997579,-891.21664254,0.00041917,14]
[354623727,1740595997588,-552.49,0.00041917,14]
[354623728,1740595997598,-630.22332613,0.00041917,14]
[354623729,1740595997607,-643.1198843,0.00041917,14]
[354623730,1740595997616,-1991.38565745,0.00041917,14]
[354623731,1740595997626,-1022.31430471,0.00041917,14]
[354623732,1740595997638,-1294.22471348,0.00041917,14]
[354623733,1740595997649,-1853.3195372,0.00041917,14]
[354623734,1740595997658,-631.02,0.00041917,14]
[354623735,1740595997667,-1573.31977342,0.00041917,14]
[354623736,1740595997676,-2426.60088709,0.00041917,14]
[354623737,1740595997686,-1150.49113871,0.00041917,14]
[354623738,1740595997696,-2490.80664372,0.00041917,14]
[354623739,1740595997706,-715.20264388,0.00041917,14]
[354623740,1740595997716,-3485.10634234,0.00041917,14]
[354623741,1740595997726,-2771.55880193,0.00041917,14]
[354623742,1740595997736,-1596.784667,0.00041917,14]
[354623743,1740595997745,-1876.90032144,0.00041917,14]
[354623744,1740595997755,-1560.50150397,0.00041917,14]
[354623745,1740595997764,-6193.07404574,0.00041917,14]
[354623746,1740595997774,-647.5437251,0.00041917,14]
[354623747,1740595997783,-1726.43688983,0.00041917,14]
[354623748,1740595997792,-1676.31965441,0.00041917,14]
[354623749,1740595997802,-2725.96538677,0.00041917,14]
[354623750,1740595997811,-563.91802649,0.00041917,14]
[354623751,1740595997820,-944.51816206,0.00041917,14]
[354623752,1740595997830,-3837.6396015,0.00041917,14]
[354623753,1740595997839,-1361.58727815,0.00041917,14]
[354623754,1740595997848,-1302.68545594,0.00041917,14]
[354623755,1740595997858,-688.72547538,0.00041917,14]
[354623756,1740595997867,-11693.81682624,0.00041917,14]
[354623757,1740595997876,-862.04897998,0.00041917,14]
[354623758,1740595997885,-2812.62125692,0.00041917,14]
[354623759,1740595997894,-1133.21422955,0.00041917,14]
[354623760,1740595997904,-3063.26771812,0.00041917,14]
[354623761,1740595997913,-2332.25596749,0.00041917,14]
[354623762,1740595997929,-1403.67034772,0.00041917,14]
[354623763,1740595997938,-2515.12049669,0.00041917,14]
[354623764,1740595997947,-840.22039101,0.00041917,14]
[354623765,1740595997957,-3032.5815213,0.00041917,14]
[354623766,1740595997966,-3285.24358655,0.00041917,14]
[354623767,1740595997976,-1217.39638279,0.00041917,14]
[354623768,1740595997988,-2865.1123618,0.00041917,14]
[354623769,1740595998001,-521.37964614,0.00041917,14]
[354623770,1740595998012,-829.6885169,0.00041917,14]
[354623771,1740595998026,-1548.54688836,0.00041917,14]
[354623772,1740595998036,-1797.56780563,0.00041917,14]
[354623773,1740595998046,-3783.81888938,0.00041917,14]
[354623774,1740595998056,-578.11522165,0.00041917,14]
[354623775,1740595998066,-1141.14333881,0.00041917,14]
[354623776,1740595998076,-2194.21620966,0.00041917,14]
[354623777,1740595998086,-2625.27765507,0.00041917,14]